Workbook

Sheet Budget (summarized)
C1: APPROVED OCT. 2018 | E1: AS OF MARCH 02, 2019 | G1: AS OF MARCH 03, 2019 | I1: AS OF MARCH 03, 2019
C2: Budget (2018/2019) | E2: Actuals (2018/2019) | G2: Projected Year-End (2018/2019) | I2: Proposed Budget (2019/2020)
A3: Revenue | D3: ='Budget (compact)'!D3 -> 152271 | F3: =E4+E6 -> 161381.93 | H3: =G4+G6 -> 161458.5
B4: STUDENT REVENUE | C4: ='Budget (compact)'!C4 -> 137271 | E4: ='Budget '!G4 -> 151458.5 | G4: =E4 -> 151458.5 | I4: =G4*0.97 -> 146914.745
B6: OTHER REVENUE | C6: ='Budget (compact)'!C9 -> 15000 | E6: ='Budget (compact)'!E9 -> 9923.43 | G6: ='Budget (compact)'!G9 -> 10000 | I6: 6500
A8: Opening balance | C8: =6600 -> 6600 | E8: =C8 -> 6600 | G8: 6600 | I8: =G8 -> 6600
A11: Disbursements/Fees
B12: SOCIETY DISBURSEMENTS | C12: ='Budget (compact)'!C19 -> 68635.75 | E12: ='Budget (compact)'!E19 -> 17005 | G12: 25000 | I12: =I4*0.5 -> 73457.3725
A14: DAGS BUDGET LINE | C14: ='Budget (compact)'!C24 -> 83635.75 | E14: ='Budget (compact)'!E24 -> 85652.68 | G14: ='Budget (compact)'!G24 -> 85729.25 | I14: =(I4*0.5)+I6 -> 79957.3725
A16: Expense | D16: ='Budget (compact)'!D27 -> 69954.94 | F16: ='Budget (compact)'!F27 -> 39212.97 | H16: =SUM(G19:G43) -> 66495.6 | J16: =SUM(I19:I43) -> 69500
A18: Administration
B19: HUMAN RESOURCES | C19: ='Budget (compact)'!C29 -> 22733.34 | E19: ='Budget (compact)'!E29 -> 13851.45 | G19: ='Budget (compact)'!G29 -> 16335.3 | I19: 17500
B21: HONORARIUM (Board of Directors & Officers, other) | C21: ='Budget (compact)'!C33 -> 16250 | E21: ='Budget (compact)'!E33 -> 5375 | G21: ='Budget (compact)'!G33 -> 14750 | I21: =(3000)*5+4000 -> 19000 | J21: *
B23: OTHER ADMIN. EXPENSES | C23: ='Budget (compact)'!C44 -> 100 | E23: ='Budget (compact)'!E44 -> 0 | G23: ='Budget (compact)'!G44 -> 250 | I23: 300 | J23: *
A25: Events & Programming
B26: CONFERENCE EXPENSES (internal) | C26: ='Budget (compact)'!C48 -> 0 | E26: ='Budget (compact)'!E48 -> 0 | G26: ='Budget (compact)'!G48 -> 1000 | I26: 1000 | J26: *
B28: PROGRAMMING & EVENTS (member-oriented) | C28: ='Budget (compact)'!C55 -> 5500 | E28: ='Budget (compact)'!E55 -> 1579.28 | G28: ='Budget (compact)'!G55 -> 3294.3 | I28: 3500
A30: Services
B31: GRADUATE STUDENT GRANTS | C31: 12000 | E31: ='Budget (compact)'!E63+'Budget (compact)'!E64 -> 11590.42 | G31: ='Budget (compact)'!G62 -> 16000 | I31: 16500
B33: MEMBER SOCIETY GRANTS | C33: ='Budget (compact)'!C68+'Budget (compact)'!C67 -> 6500 | E33: ='Budget (compact)'!E67 -> 4350 | G33: ='Budget (compact)'!G66 -> 6500 | I33: 7000
A35: Operations
B36: OPERATIONS- GENERAL (office, bank…etc.) | C36: ='Budget (compact)'!C71 -> 683.6 | E36: ='Budget (compact)'!E71 -> 499.82 | G36: ='Budget (compact)'!G71 -> 661 | I36: 1000
B38: OPERATIONS- Communication/services | C38: ='Budget (compact)'!C79 -> 2190 | E38: ='Budget (compact)'!E79 -> 1967 | G38: ='Budget (compact)'!G79 -> 3517 | I38: 3500
B40: OPERATIONS- other | C40: ='Budget (compact)'!C86 -> 30 | E40: ='Budget (compact)'!E86 -> 0 | G40: ='Budget (compact)'!G86 -> 220 | I40: 200
A42: Debt
B43: DSU repayment | C43: ='Budget (compact)'!C91 -> 3968 | E43: ='Budget (compact)'!E91 -> 0 | G43: ='Budget (compact)'!G91 -> 3968 | I43: 0

Sheet Adjustments
F1: Actuals (Mar 2019) | G1: Projected (2018-2019)
A2: Society Disbursements | D2: 7575 | F2: =SUM(F3) -> 1000 | G2: 1000
C3: late, lost, unpaid fall winter summer | D3: 7575 | F3: 1000 | G3: 1000
C6: CRA | D6: =SUM(D7:D9) -> 34000 | F6: =SUM(F7:F9) -> 0 | G6: 23000
C7: Remittance for past employees | D7: 7000 | F7: 0 | G7: 2000
C8: HST returns | D8: 22000 | F8: 0 | G8: 20000
C9: CRA penalty | D9: 5000 | G9: 1000
C11: Transition expenses | D11: =SUM(D12:D13) -> 1650 | F11: =SUM(F12:F13) -> 1659.04 | G11: 1659.04
A12: 5825 | C12: Office Manager Transition | D12: 1650 | F12: =1659.04 -> 1659.04 | G12: 1659.04
A13: 5335 | C13: transition expenses (not office manager) | D13: 0 | F13: 0 | G13: 0
C15: Grants | D15: =SUM(D16:D19) -> 4700 | F15: =SUM(F16:F20) -> 4600 | G15: =SUM(G16:G19) -> 4600
C16: Special Funding | D16: 2500 | F16: 2500 | G16: 2500
C17: Professional Development | D17: 400 | F17: 800 | G17: 800
C18: Community building | D18: 0
C19: Travel | D19: 1800 | F19: 1300 | G19: 1300
C21: Social Events | D21: =SUM(D22) -> 212 | F21: =SUM(F22) -> 512 | G21: 512
A22: 5420 | C22: grad student appreciation night | D22: 212 | F22: =212+300 -> 512 | G22: 512
C24: Honoraria | D24: =SUM(D25:D26) -> 2000 | F24: =SUM(F25:F26) -> 1850 | G24: 3600
A25: 5730 | C25: VPSL | D25: 750 | F25: 750 | G25: 750
A26: 5760 | C26: Directors+CRO (3 honoured; 1 in question) | D26: 1250 | F26: =250+250+600 -> 1100 | G26: 2850
C28: Muse & Misc. | D28: =SUM(D29:D30) -> 7967.49 | F28: =SUM(F29:F30) -> 7901.1 | G28: 9967.49
A29: 5999 | C29: Debt Repayment | D29: 3967.49 | F29: =D29 -> 3967.49 | G29: 3967.49
C30: Other fines/fees (inc. CFS, Bell…etc.) | D30: 4000 | F30: =1749.48+16.22+10.07+701.45+321.7+1102.09+32.6 -> 3933.61 | G30: 6000
C32: Total | D32: =SUM(D2+D6+D11+D15+D21+D24+D28) -> 58104.49 | F32: =F2+F6+F11+F15+F21+F24+F28 -> 17522.14 | G32: 44338.53
C34: Total expenditure (adj + expenses) | G34: =G32+'Budget (summarized)'!H16 -> 110834.13
C36: Year end (balance) | G36: =('Budget (summarized)'!H3+'Budget (summarized)'!G8)-G34 -> 57224.37

Sheet Budget (compact)
C1: APPROVED OCT. 2018 | E1: AS OF MARCH 02, 2019 | G1: AS OF MARCH 03, 2019 | I1: AS OF MARCH 03, 2019
C2: Budget (2018/2019) | E2: Actuals (2018/2019) | G2: Projected Year-End (2018/2019) | I2: Proposed Budget (2019/2020)
A3: Revenue | D3: =SUM(C4+C9) -> 152271 | F3: =SUM(E4+E9) -> 161381.93 | H3: =G4+G9 -> 161458.5
B4: STUDENT REVENUE | C4: =SUM(C5:C7) -> 137271 | E4: ='Budget '!G4 -> 151458.5 | G4: =E4 -> 151458.5 | I4: =G4*0.97 -> 146914.745
B5: Winter Fees (Summer 2018 audit) | C5: 39301 | E5: ='Budget '!G5 -> 49701.5 | F5: <-- roughly | G5: 49701.5 | H5: <-- roughly
B6: Summer Fees (Fall 2018 audit) | C6: 49490 | E6: ='Budget '!G6:G7 -> 101757 | G6: 101757
B7: Fall Fees (Winter 2019 audit) | C7: 48480
B9: OTHER REVENUE | C9: =SUM(C11) -> 15000 | E9: =SUM(E10:E11) -> 9923.43 | G9: =SUM(G10:G11) -> 10000 | I9: 6500
B10: Space booking (Rm 418) | C10: 0 | E10: =0 -> 0 | G10: 0
B11: Misc. revenue | C11: 15000 | E11: ='Budget '!G9 -> 9923.43 | G11: 10000
A14: Reserve
B15: Closing Balance (previous year) | C15: 56242.95 | D15: <--- WRONG | E15: =C15-E5 -> 6541.45 | G15: =E15 -> 6541.45 | I15: =Adjustments!G36 -> 57224.37
A18: Disbursements/Fees
B19: SOCIETY DISBURSEMENTS | C19: 68635.75 | E19: ='Budget '!H22 -> 17005 | G19: 25000
B20: Summer Disbursement | C20: 19650.75
B21: Fall Disbursement | C21: 24745
B22: Winter Disbursement | C22: 24240
A24: DAGS BUDGET LINE | B24: 0.5(student revenue)+other revenue | C24: =C19+C9 -> 83635.75 | E24: =E9+(E4*0.5) -> 85652.68 | G24: =(G4*0.5)+G9 -> 85729.25
D25: =C24-D27 -> 13680.81 | F25: =E24-F27 -> 46439.71 | H25: =G24-H27 -> 19233.65
A26: Expense
D27: =C29+C33+C44+C48+C55+C62+C71+C79+C86+C91 -> 69954.94 | F27: =E29+E33+E44+E48+E55+E62+E66+E71+E79+E86+E91 -> 39212.97 | H27: =G29+G33+G44+G48+G55+G62+G66+G71+G79+G86+G91 -> 66495.6
A28: Administration
B29: HUMAN RESOURCES | C29: 22733.34 | E29: ='Budget '!F31 -> 13851.45 | G29: =SUM(G30:G31) -> 16335.3 | I29: =H27-F27 -> 27282.63
B30: Office Coordinator (per annum salary) | C30: 17050 | E30: ='Budget '!F32 -> 8116.1 | G30: =10300+300 -> 10600
B31: Other Employer Contributions (0.1*salary) | C31: 5683.34 | E31: ='Budget '!F34 -> 5735.3 | G31: =E31 -> 5735.3
B33: HONORARIUM (Board of Directors & Officers, other) | C33: =SUM(C34:C42) -> 16250 | E33: ='Budget '!F37 -> 5375 | G33: =SUM(G34:G42) -> 14750
B34: President | C34: 3000 | E34: ='Budget '!F38 -> 1500 | G34: 3000
B35: Vice President External | C35: 3000 | E35: ='Budget '!F39 -> 1500 | G35: 3000
B36: Vice President Academic | C36: 3000 | E36: ='Budget '!F40 -> 375 | G36: 3000
B37: Vice President Finance and Operations | C37: 3000 | E37: ='Budget '!F41 -> 1500 | G37: 3000
B38: Director of Engineering, Architecture, Planning & Computer Science | C38: 1000 | E38: ='Budget '!F42 -> 500 | G38: 1000
B39: Director of Science, Medicine & Agriculture | C39: 1000 | E39: ='Budget '!F43 -> 0 | G39: 500
B40: Director of Health Professions | C40: 1000 | E40: ='Budget '!F44 -> 0 | G40: 500
B41: Director of Arts, Social Science, Journalism, Law & Management | C41: 1000 | E41: ='Budget '!F45 -> 0 | G41: 500
B42: Other Honorarium (incl. CRO) | C42: 250 | E42: ='Budget '!F46 ->  | G42: 250
B44: OTHER ADMIN. EXPENSES | C44: =SUM(C45) -> 100 | E44: =0 -> 0 | G44: =G45 -> 250
B45: Elections | C45: 100 | E45: 0 | G45: 250
A47: Events & Programming
B48: CONFERENCE EXPENSES (internal) | C48: =SUM(C49:C53) -> 0 | E48: 0 | G48: =SUM(G49:G53) -> 1000
B49: CAGS | C49: 0 | E49: 0 | G49: 600
B50: GU15 | C50: 0 | E50: =C50 -> 0 | G50: 0
B51: CFS NGM (July, Nov) | C51: 0 | E51: 0 | G51: 0
B52: CFS NGC (agm?) | C52: 0 | E52: 0 | G52: 400
B53: Other conference | C53: 0 | E53: =C53 -> 0 | G53: 0
B55: PROGRAMMING & EVENTS (member-oriented) | C55: =SUM(C56:C59) -> 5500 | E55: ='Budget '!H66 -> 1579.28 | G55: =SUM(G56:G59) -> 3294.3
B56: Orientation (Fall + Winter) | C56: 2000 | E56: =1294.3 -> 1294.3 | G56: =E56 -> 1294.3
B57: Social events (general) | C57: 3500 | E57: ='Budget '!F69 -> 284.98 | G57: 2000
B58: Special event(s)
B59: Programming (lunch & learns, peer support…etc.)
A61: Services
B62: GRADUATE STUDENT GRANTS | C62: =SUM(C63:C68) -> 18500 | E62: =SUM(E63:E68) -> 15940.42 | G62: =SUM(G63:G64) -> 16000
B63: Travel Grants | C63: 8600 | E63: ='Budget '!F79 -> 5875 | G63: 9000
B64: Professional Development Grants | C64: 3400 | E64: ='Budget '!F80 -> 5715.42 | G64: 7000
B66: MEMBER SOCIETY GRANTS | G66: =SUM(G67:G68) -> 6500
B67: Special Event Grants | C67: 5000 | E67: ='Budget '!F83 -> 4350 | G67: 5500
B68: Space/Skill building Grants | C68: 1500 | E68: ='Budget '!F86 -> 0 | G68: 1000
A70: Operations
B71: OPERATIONS- GENERAL (office, bank…etc.) | C71: =SUM(C72:C77) -> 683.6 | E71: =SUM(E72:E77) -> 499.82 | G71: =SUM(G72:G77) -> 661
B72: Bank Fees (account service fees, cheque books…etc.) | C72: 80 | E72: ='Budget '!F93 -> 286.3 | G72: =300 -> 300
B73: Joint Stock Registration Fees | C73: 153.6 | E73: =0 -> 0
B74: Copy/Printing-related fees | C74: 300 | E74: ='Budget '!F98 -> 63.24 | G74: 150
B75: Office Supplies | C75: 150 | E75: ='Budget '!F101 -> 120.95 | G75: 150
B76: Rent | C76: 0 | E76: =0 -> 0 | G76: 1
B77: Mail/courier expenses | C77: 0 | E77: ='Budget '!F103 -> 29.33 | G77: 60
B79: OPERATIONS- Communication/services | C79: =SUM(C80:C84) -> 2190 | E79: =SUM(E80:E84) -> 1967 | G79: =SUM(G80:G84) -> 3517
B80: Outreach & communications material ("swag") | C80: 200 | E80: =0 -> 0 | G80: 200
B81: Meeting expenses (AGM, Board, Council) | C81: 350 | G81: 350
B82: Other op. outreach/comm expenses (incl. snacks, coffee, tea…etc.) | C82: 0 | G82: 500
B83: Website license | C83: 470 | G83: 500
B84: Insurance | C84: 1170 | E84: ='Budget '!F92 -> 1967 | G84: =E84 -> 1967
B86: OPERATIONS- other | C86: =SUM(C87:C89) -> 30 | E86: =SUM(E87:E89) -> 0 | G86: =SUM(G87:G89) -> 220
B87: Facilities expenses | C87: 0 | E87: =0 -> 0 | G87: 20
B88: Legal expenses | C88: 0 | E88: 0 | G88: 0
B89: Other expenses (incl. ) | C89: 30 | E89: ='Budget '!F121 -> 0 | G89: 200
A91: Debt | C91: =SUM(C92:C93) -> 3968 | E91: =SUM(E92:E93) -> 0 | G91: =SUM(G92:G94) -> 3968
B92: DSU loan repayment | C92: 3968 | E92: 0 | G92: 3968
B93: Other accounts owing | C93: 0 | E93: 0 | G93: 0

Sheet Budget
D1: OCT. 2018 | F1: 2019-03-01
D2: Budget (2018/2019) | F2: Actuals (2018/2019)
A3: Revenue | E3: =SUM(D4+D9) -> 152271 | H3: =SUM(G4+G9) -> 161381.93
B4: STUDENT REVENUE | D4: =SUM(D5:D7) -> 137271 | G4: =SUM(G5:G7) -> 151458.5
B5: Winter Fees (Winter 2018, given at Summer 2018 audit) | D5: 39301 | G5: 49701.5
B6: Summer Fees (Summer 2018, given at Fall 2018 audit) | D6: 49490 | G6: 101757
B7: Fall Fees (Fall 2018, given at Winter 2019 audit) | D7: 48480
B9: OTHER REVENUE | D9: =SUM(D10:D13) -> 15000 | G9: =SUM(G10:G13) -> 9923.43
B10: Space booking (Rm 418) | D10: 0 | G10: 0
B11: Misc. Revenue
C12: Muse revenue | D12: 10000 | G12: 2974
C13: Other revenue (GIC, closing accounts…etc.) | D13: 5000 | G13: =5000+1398.6+550.83 -> 6949.43
A15: Reserve | E15: =D16 -> 56242.95 | H15: 56242.95
B16: Starting Capital | D16: 56242.95
F17: expense | G17: income
A18: DAGS BUDGET LINE | B18: 0.5(student revenue)+(other revenue) | E18: =(D4*0.5)+D9 -> 83635.5 | H18: =(G4*0.5)+G9 -> 85652.68
E20: =E22+E28 -> 147740.4333 | H20: =H22+H28 -> 56218.97
A22: Disbursements/Fees | E22: =D23 -> 68635.5 | H22: 17005
B23: SOCIETY DISBURSEMENTS | D23: =SUM(D24:D26) -> 68635.5 | F23: 17005
B24: Winter Fees (Winter 2018, Summer 2018 audit) | D24: =0.5*D5 -> 19650.5
B25: Summer Fees (Summer 2018, Fall 2018 audit) | D25: 24745
B26: Fall Fees (Fall 2018, Winter 2019 audit) | D26: 24240
A28: DAGS Expense | E28: =E30+E57+E77+E90+E123 -> 79104.93333 | H28: =H30+H37+H50+H58+H66+H77+H90 -> 39213.97
A30: Administration | E30: =D31+D37+D50 -> 38333.33333 | H30: =F31+F37 -> 19226.45
B31: HUMAN RESOURCES | D31: =SUM(D32:D35) -> 22733.33333 | F31: =11293.37+2558.08 -> 13851.45
B32: Office Coordinator (per annum salary) | C32: Salary + (0.1*office coord salary) | D32: =15500+1550 -> 17050 | F32: =6987.27+1128.83 -> 8116.1
B33: Other Employer Contributions
C34: Other contributions (initial contract expenses) | D34: =((31000/12)*2)+(((31000/12)*0.1)*2) -> 5683.333333 | F34: 5735.3
B35: Staff transition expenses | D35: 0 | F35: 0
B37: HONORARIUM (Board of Directors & Officers, other) | D37: =SUM(D38:D48) -> 15500 | F37: =SUM(F38:F47) -> 5375
B38: President | D38: 3000 | F38: 1500
B39: Vice President External | D39: 3000 | F39: 1500
B40: Vice President Academic | D40: 3000 | F40: 375
B41: Vice President Finance and Operations | D41: 3000 | F41: 1500
B42: Director of Engineering, Architecture, Planning & Computer Science | D42: 1000 | F42: 500
B43: Director of Science, Medicine & Agriculture | D43: 750 | F43: 0
B44: Director of Health Professions | D44: 750 | F44: 0
B45: Director of Arts, Social Science, Journalism, Law & Management | D45: 750 | F45: 0
B46: Other Honorarium
C47: CRO | D47: 250 | F47: 0
B50: OTHER ADMIN. EXPENSES | D50: =SUM(D51:D55) -> 100 | F50: =SUM(F52:F56) -> 0 | H50: =F50 -> 0
B51: Elections
C52: Candidate budgets | D52: 100 | F52: 0
C53: Elections communication/outreach | D53: 0 | F53: 0
C54: Other election expenses | D54: 0 | F54: 0
B55: Other admin. expenses | D55: 0 | F55: 0
A57: Events & Programming | E57: =D58+D65 -> 5500
B58: CONFERENCE EXPENSES (internal) | D58: =SUM(D59:D63) -> 0 | F58: =SUM(F59:F63) -> 0 | H58: =F58 -> 0
B59: CAGS | D59: 0 | F59: 0
B60: GU15 | D60: 0 | F60: 0
B61: CFS NGM (July, Nov) | D61: 0 | F61: 0
B62: CFS NGC (agm?) | D62: 0 | F62: 0
B63: Other conference | D63: 0 | F63: 0
B65: PROGRAMMING & EVENTS (member-oriented) | D65: =SUM(D66:D75) -> 5500
B66: Orientation | D66: 2000 | H66: =(F67-G67)+F68+F69 -> 1579.28
C67: Fall orientation expenses (boat cruise, bbq…etc.) | F67: =1690.5+1690.5+254.9+67.75+313.19 -> 4016.84 | G67: 3171.6
C68: Winter orientation expenses (meet & greets, pizza social…etc.) | F68: 449.06
B69: Social events (general) | D69: 3500 | F69: 284.98
B70: <500 | C70: DAGS events
B71: Special event(s)
B72: >500 | C72: Social (appreciation night, balls…etc.)
B73: Programming
C74: Lunch & learn
C75: Other programs (peer support, advocacy…etc.)
A77: Services | E77: =D78+D82 -> 18500 | H77: =SUM(F78+F82) -> 15940.42
B78: GRADUATE STUDENT GRANTS | D78: =SUM(D79:D80) -> 12000 | F78: =SUM(F79:F80) -> 11590.42
B79: Travel Grants | D79: 8600 | F79: 5875
B80: Professional Development Grants | D80: 3400 | F80: 5715.42
B82: MEMBER SOCIETY GRANTS | D82: =D83+D86 -> 6500 | F82: =SUM(F83:F87) -> 4350
B83: Special Event Grants | D83: 5000 | F83: 4350
C84: Social events
C85: Other special events
B86: Space/Skill building Grants | D86: 1500 | F86: 0
C87: Educational/academic events
C88: Community/communication-related projects (journals, zines, podcasts…etc.)
A90: Operations | E90: =D91+D105+D118+D12 -> 12803.6 | H90: =SUM(F91+F105+F118+F124) -> 2467.82
B91: OPERATIONS- GENERAL (office, bank…etc.) | D91: =D92+D93+D97+D98+D101+D102+D103 -> 1883.6 | F91: =SUM(F92:F103) -> 2467.82
B92: Insurance | D92: 1170 | F92: 1967
B93: Bank Fees (account service fees, cheque books…etc.) | D93: 80 | F93: =37.94+238.29+10.07 -> 286.3
C94: Service charges
C95: Cheque-related fees
C96: Other bank fees
B97: Joint Stock Registration Fees | D97: 153.6 | F97: 0
B98: Copy/Printing-related fees | D98: 300 | F98: =63.24 -> 63.24
C99: Supply fees (paper, ink…etc.)
C100: Maintenance fees
B101: Office Supplies | D101: 150 | F101: 120.95
B102: Rent | D102: 0 | F102: 1
B103: Mail/courier expenses | D103: 30 | F103: 29.33
B105: OPERATIONS- Communication/services | D105: =D106+D109+D113+D116 -> 920 | F105: =SUM(F106:F116) -> 0
B106: Outreach & communications material | D106: 200 | F106: 0
C107: CFS campaign material (incl. "swag")
C108: DAGS material
B109: Meeting expenses | D109: =SUM(D110:D112) -> 250
C110: Board meetings | D110: 0 | F110: 0
C111: Council meetings | D111: 0 | F111: 0
C112: AGM | D112: 250 | F112: 0
B113: Other op. outreach/comm expenses (incl. snacks, coffee, tea…etc.) | D113: 0 | F113: 0
C114: Tabling food/refreshment expenses
C115: Common space food/refreshment expenses
B116: Website license | D116: 470 | F116: 0
B118: OPERATIONS- other | D118: =SUM(D119:D121) -> 0 | F118: =SUM(F119:F121) -> 0
B119: Facilities expenses | D119: 0 | F119: 0
B120: Legal expenses | D120: 0 | F120: 0
B121: Other expenses (incl. ) | D121: 0 | F121: 0
A123: Accounts owing | E123: =D124 -> 3968
B124: DEBT | D124: =SUM(D125:D126) -> 3968 | F124: =SUM(F125:F126) -> 0
B125: DSU loan repayment | D125: 3968 | F125: 0
B126: Other debts/accounts owing | D126: 0 | F126: 0
A128: Before adjustments: (DAGS Budget line) - (Expenses) | E128: =E18-E28 -> 4530.566667 | H128: =H18-H28 -> 46438.71
A129: Before adjustments: (Income) - (Expenditure) | E129: =(E3+E15)-E20 -> 60773.51667 | H129: =(G4+H15)-H20 -> 151482.48
